fUSD/lending_fUSD_20260527
["ID","MTS","AMOUNT","RATE_DAILY","PERIOD"]
[423157895,1779897050000,-2317.0,0.00038004,11]
[423157886,1779897050000,-152.0,0.00038,120]
[423157870,1779897050000,-151.0,0.00037899,7]
[423157879,1779897050000,-300.0,0.00037999,10]
[423157859,1779897050000,-1689.068888,0.00037899,7]
[423157858,1779897050000,-462.613322,0.00037899,7]
[423157860,1779897050000,-1689.068888,0.00037899,7]
[423157862,1779897050000,-1689.068888,0.00037899,7]
[423157861,1779897050000,-1689.068888,0.00037899,7]
[423157864,1779897050000,-300.0,0.00037899,10]
[423157863,1779897050000,-151.0,0.00037899,7]
[423157866,1779897050000,-151.0,0.00037899,7]
[423157876,1779897050000,-700.0,0.00037964,60]
[423157865,1779897050000,-300.0,0.00037899,10]
[423157872,1779897050000,-350.0,0.00037902,2]
[423157871,1779897050000,-1700.0,0.000379,13]
[423157867,1779897050000,-151.0,0.00037899,7]
[423157868,1779897050000,-151.0,0.00037899,7]
[423157869,1779897050000,-151.0,0.00037899,7]
[423157873,1779897050000,-157.90300786,0.00037902,2]
[423157874,1779897050000,-1589.0,0.00037904,11]
[423157875,1779897050000,-2831.62,0.00037932,30]
[423157877,1779897050000,-500.0,0.00037973,2]
[423157878,1779897050000,-300.0,0.00037999,10]
[423157880,1779897050000,-666.0,0.00037999,30]
[423157881,1779897050000,-300.0,0.00037999,10]
[423157888,1779897050000,-4139.81339236,0.00038,60]
[423157883,1779897050000,-300.0,0.00037999,10]
[423157882,1779897050000,-300.0,0.00037999,10]
[423157887,1779897050000,-300.1611,0.00038,60]
[423157911,1779897050000,-1589.0,0.00038222,11]
[423157910,1779897050000,-2317.0,0.00038215,11]
[423157925,1779897050000,-202.36505084,0.00038341,2]
[423157946,1779897050000,-896.806125,0.00038356,30]
[423157943,1779897050000,-151.0,0.00038356,30]
[423157940,1779897050000,-233.300099,0.00038356,30]
[423157945,1779897050000,-526.540791,0.00038356,30]
[423157947,1779897050000,-526.540791,0.00038356,30]
[423157950,1779897050000,-151.0,0.00038356,30]
[423157952,1779897050000,-227.545438,0.00038356,30]
[423157951,1779897050000,-896.806125,0.00038356,30]
[423157961,1779897050000,-151.0,0.00038356,30]
[423157953,1779897050000,-151.0,0.00038356,30]
[423157954,1779897050000,-896.806125,0.00038356,30]
[423157955,1779897050000,-227.545438,0.00038356,30]
[423157959,1779897050000,-151.0,0.00038356,30]
[423157958,1779897050000,-227.545438,0.00038356,30]
[423157957,1779897050000,-151.0,0.00038356,30]
[423157960,1779897050000,-662.281332,0.00038356,30]
[423157963,1779897050000,-662.281332,0.00038356,30]
[423157962,1779897050000,-662.281332,0.00038356,30]
[423157965,1779897050000,-608.349859,0.00038356,30]
[423157964,1779897050000,-662.281332,0.00038356,30]
[423157967,1779897050000,-151.0,0.00038356,30]
[423157966,1779897050000,-608.349859,0.00038356,30]
[423157968,1779897050000,-608.349859,0.00038356,30]
[423157969,1779897050000,-608.349859,0.00038356,30]
[423157915,1779897050000,-300.0,0.00038299,10]
[423157944,1779897050000,-526.540791,0.00038356,30]
[423157948,1779897050000,-896.806125,0.00038356,30]
[423157956,1779897050000,-227.545438,0.00038356,30]
[423157942,1779897050000,-151.0,0.00038356,30]
[423157914,1779897050000,-300.0,0.00038299,10]
[423157938,1779897050000,-151.0,0.00038356,30]
[423157924,1779897050000,-223.29777412,0.0003834,30]
[423157917,1779897050000,-9541.81,0.000383,2]
[423157920,1779897050000,-300.0,0.00038322,10]
[423157922,1779897050000,-2313.0,0.00038323,11]
[423157923,1779897050000,-1054.0,0.00038323,11]
[423157918,1779897050000,-514.23,0.000383,2]
[423157921,1779897050000,-300.0,0.00038322,10]
[423157919,1779897050000,-514.23,0.000383,2]
[423157929,1779897050000,-205.114481,0.00038356,30]
[423157926,1779897050000,-1055.27,0.00038356,30]
[423157928,1779897050000,-151.0,0.00038356,30]
[423157916,1779897050000,-9541.81,0.000383,2]
[423157930,1779897050000,-262.392171,0.00038356,30]
[423157949,1779897050000,-526.540791,0.00038356,30]
[423157941,1779897050000,-151.0,0.00038356,30]
[423157939,1779897050000,-151.0,0.00038356,30]
[423157937,1779897050000,-205.114481,0.00038356,30]
[423157927,1779897050000,-150.0,0.00038356,30]
[423157935,1779897050000,-151.0,0.00038356,30]
[423157934,1779897050000,-205.114481,0.00038356,30]
[423157933,1779897050000,-151.0,0.00038356,30]
[423157932,1779897050000,-205.114481,0.00038356,30]
[423157931,1779897050000,-151.0,0.00038356,30]
[423157936,1779897050000,-151.0,0.00038356,30]
[423158016,1779897051000,-771.277333,0.00038356,30]
[423158000,1779897051000,-171.302303,0.00038356,30]
[423158021,1779897051000,-228.048487,0.00038356,30]
[423158013,1779897051000,-771.277333,0.00038356,30]
[423158011,1779897051000,-270.277525,0.00038356,30]
[423157999,1779897051000,-151.0,0.00038356,30]
[423157998,1779897051000,-171.302303,0.00038356,30]
[423158007,1779897051000,-613.690197,0.00038356,30]
[423158006,1779897051000,-270.277525,0.00038356,30]
[423158005,1779897051000,-269.421428,0.00038356,30]
[423158009,1779897051000,-244.904878,0.00038356,30]
[423158017,1779897051000,-269.421428,0.00038356,30]
[423158010,1779897051000,-269.421428,0.00038356,30]
[423158015,1779897051000,-613.690197,0.00038356,30]
[423158031,1779897051000,-396.996399,0.00038356,30]
[423158018,1779897051000,-613.690197,0.00038356,30]
[423158020,1779897051000,-228.447021,0.00038356,30]
[423158019,1779897051000,-771.277333,0.00038356,30]
[423158023,1779897051000,-729.849317,0.00038356,30]
[423158022,1779897051000,-151.0,0.00038356,30]
[423158012,1779897051000,-613.690197,0.00038356,30]
[423158025,1779897051000,-151.0,0.00038356,30]
[423158024,1779897051000,-260.88469,0.00038356,30]
[423158027,1779897051000,-729.849317,0.00038356,30]
[423158035,1779897051000,-396.996399,0.00038356,30]
[423158032,1779897051000,-1008.44916,0.00038356,30]
[423158026,1779897051000,-729.849317,0.00038356,30]
[423158008,1779897051000,-771.277333,0.00038356,30]
[423158014,1779897051000,-269.421428,0.00038356,30]
[423157997,1779897051000,-151.0,0.00038356,30]
[423157970,1779897051000,-151.0,0.00038356,30]
[423158004,1779897051000,-151.0,0.00038356,30]
[423158028,1779897051000,-729.849317,0.00038356,30]
[423157973,1779897051000,-511.751654,0.00038356,30]
[423157971,1779897051000,-511.751654,0.00038356,30]
[423157972,1779897051000,-151.0,0.00038356,30]
[423157974,1779897051000,-151.0,0.00038356,30]
[423157976,1779897051000,-511.751654,0.00038356,30]
[423157979,1779897051000,-511.751654,0.00038356,30]
[423157977,1779897051000,-151.0,0.00038356,30]
[423157978,1779897051000,-151.0,0.00038356,30]
[423157983,1779897051000,-231.23998198,0.00038356,2]
[423157975,1779897051000,-151.0,0.00038356,30]
[423157984,1779897051000,-708.380572,0.00038356,30]
[423157980,1779897051000,-151.0,0.00038356,30]
[423157982,1779897051000,-708.380572,0.00038356,30]
[423157981,1779897051000,-708.380572,0.00038356,30]
[423157986,1779897051000,-151.0,0.00038356,30]
[423157985,1779897051000,-708.380572,0.00038356,30]
[423157987,1779897051000,-151.0,0.00038356,30]
[423157989,1779897051000,-151.0,0.00038356,30]
[423157988,1779897051000,-151.0,0.00038356,30]
[423157991,1779897051000,-841.867711,0.00038356,30]
[423157990,1779897051000,-841.867711,0.00038356,30]
[423157995,1779897051000,-171.302303,0.00038356,30]
[423157996,1779897051000,-171.302303,0.00038356,30]
[423157992,1779897051000,-841.867711,0.00038356,30]
[423157993,1779897051000,-841.867711,0.00038356,30]
[423157994,1779897051000,-151.0,0.00038356,30]
[423158001,1779897051000,-270.277525,0.00038356,30]
[423158002,1779897051000,-151.0,0.00038356,30]
[423158003,1779897051000,-270.277525,0.00038356,30]
[423158033,1779897051000,-396.996399,0.00038356,30]
[423158097,1779897051000,-330.0,0.00038405,51]
[423158029,1779897051000,-151.0,0.00038356,30]
[423158069,1779897051000,-151.0,0.00038356,30]
[423158071,1779897051000,-151.0,0.00038356,30]
[423158074,1779897051000,-151.0,0.00038356,30]
[423158070,1779897051000,-151.0,0.00038356,30]
[423158073,1779897051000,-823.790356,0.00038356,30]
[423158077,1779897051000,-151.0,0.00038356,30]
[423158076,1779897051000,-823.790356,0.00038356,30]
[423158075,1779897051000,-823.790356,0.00038356,30]
[423158065,1779897051000,-866.453017,0.00038356,30]
[423158072,1779897051000,-823.790356,0.00038356,30]
[423158079,1779897051000,-170.946465,0.00038356,30]
[423158080,1779897051000,-170.946465,0.00038356,30]
[423158090,1779897051000,-169.254848,0.00038356,30]
[423158068,1779897051000,-153.695146,0.00038356,30]
[423158078,1779897051000,-170.946465,0.00038356,30]
[423158081,1779897051000,-170.946465,0.00038356,30]
[423158082,1779897051000,-1064.329233,0.00038356,30]
[423158088,1779897051000,-1064.329233,0.00038356,30]
[423158084,1779897051000,-169.254848,0.00038356,30]
[423158086,1779897051000,-151.0,0.00038356,30]
[423158083,1779897051000,-1064.329233,0.00038356,30]
[423158085,1779897051000,-1064.329233,0.00038356,30]
[423158087,1779897051000,-169.254848,0.00038356,30]
[423158092,1779897051000,-151.0,0.00038356,30]
[423158094,1779897051000,-1549.0,0.00038356,30]
[423158091,1779897051000,-169.254848,0.00038356,30]
[423158095,1779897051000,-150.0,0.00038375,2]
[423158096,1779897051000,-151.0,0.000384,120]
[423158089,1779897051000,-151.0,0.00038356,30]
[423158067,1779897051000,-151.0,0.00038356,30]
[423158093,1779897051000,-151.0,0.00038356,30]
[423158064,1779897051000,-301.575484,0.00038356,30]
[423158066,1779897051000,-866.453017,0.00038356,30]
[423158034,1779897051000,-1008.44916,0.00038356,30]
[423158037,1779897051000,-151.0,0.00038356,30]
[423158047,1779897051000,-209.599637,0.00038356,30]
[423158038,1779897051000,-396.996399,0.00038356,30]
[423158036,1779897051000,-1008.44916,0.00038356,30]
[423158048,1779897051000,-1710.42265,0.00038356,30]
[423158039,1779897051000,-1008.44916,0.00038356,30]
[423158040,1779897051000,-371.933807,0.00038356,30]
[423158041,1779897051000,-151.0,0.00038356,30]
[423158043,1779897051000,-157.861288,0.00038356,30]
[423158045,1779897051000,-371.933807,0.00038356,30]
[423158044,1779897051000,-151.0,0.00038356,30]
[423158046,1779897051000,-157.861288,0.00038356,30]
[423158042,1779897051000,-371.933807,0.00038356,30]
[423158030,1779897051000,-215.461528,0.00038356,30]
[423158058,1779897051000,-157.861288,0.00038356,30]
[423158050,1779897051000,-151.0,0.00038356,30]
[423158052,1779897051000,-371.933807,0.00038356,30]
[423158057,1779897051000,-866.453017,0.00038356,30]
[423158051,1779897051000,-151.0,0.00038356,30]
[423158054,1779897051000,-1710.42265,0.00038356,30]
[423158053,1779897051000,-157.861288,0.00038356,30]
[423158056,1779897051000,-301.575484,0.00038356,30]
[423158062,1779897051000,-866.453017,0.00038356,30]
[423158059,1779897051000,-1710.42265,0.00038356,30]
[423158063,1779897051000,-1710.42265,0.00038356,30]
[423158060,1779897051000,-301.575484,0.00038356,30]
[423158055,1779897051000,-151.0,0.00038356,30]
[423158049,1779897051000,-301.575484,0.00038356,30]
[423158061,1779897051000,-151.0,0.00038356,30]
[423158124,1779897052000,-514.23,0.000386,2]
[423158127,1779897052000,-500.0,0.00038608,7]
[423158128,1779897052000,-500.0,0.00038608,7]
[423158141,1779897052000,-500.0,0.00038608,7]
[423158133,1779897052000,-500.0,0.00038608,7]
[423158134,1779897052000,-500.0,0.00038608,7]
[423158130,1779897052000,-500.0,0.00038608,7]
[423158132,1779897052000,-500.0,0.00038608,7]
[423158135,1779897052000,-500.0,0.00038608,7]
[423158136,1779897052000,-500.0,0.00038608,7]
[423158131,1779897052000,-500.0,0.00038608,7]
[423158142,1779897052000,-500.0,0.00038608,7]
[423158137,1779897052000,-500.0,0.00038608,7]
[423158138,1779897052000,-500.0,0.00038608,7]
[423158140,1779897052000,-500.0,0.00038608,7]
[423158143,1779897052000,-500.0,0.00038608,7]
[423158125,1779897052000,-300.0,0.00038607,10]
[423158151,1779897052000,-500.0,0.00038608,7]
[423158144,1779897052000,-500.0,0.00038608,7]
[423158145,1779897052000,-500.0,0.00038608,7]
[423158154,1779897052000,-500.0,0.00038608,7]
[423158153,1779897052000,-500.0,0.00038608,7]
[423158146,1779897052000,-500.0,0.00038608,7]
[423158149,1779897052000,-500.0,0.00038608,7]
[423158139,1779897052000,-500.0,0.00038608,7]
[423158121,1779897052000,-434.23603839,0.00038546,10]
[423158118,1779897052000,-434.23603839,0.00038546,10]
[423158126,1779897052000,-666.0,0.00038607,30]
[423158147,1779897052000,-500.0,0.00038608,7]
[423158100,1779897052000,-17609.34006782,0.00038416,2]
[423158102,1779897052000,-160.44,0.0003845,105]
[423158101,1779897052000,-157.90300786,0.0003845,2]
[423158103,1779897052000,-300.0,0.00038499,10]
[423158098,1779897052000,-300.0,0.00038407,10]
[423158099,1779897052000,-4650.46,0.00038408,120]
[423158105,1779897052000,-9541.81,0.000385,2]
[423158104,1779897052000,-666.0,0.00038499,30]
[423158114,1779897052000,-434.23603839,0.00038546,10]
[423158116,1779897052000,-434.23603839,0.00038546,10]
[423158129,1779897052000,-500.0,0.00038608,7]
[423158115,1779897052000,-434.23603839,0.00038546,10]
[423158106,1779897052000,-40000.0,0.000385,120]
[423158112,1779897052000,-434.23603849,0.00038546,10]
[423158109,1779897052000,-2100.0,0.00038512,60]
[423158113,1779897052000,-434.23603839,0.00038546,10]
[423158110,1779897052000,-150.0,0.00038541,120]
[423158108,1779897052000,-195.0,0.00038502,11]
[423158117,1779897052000,-434.23603839,0.00038546,10]
[423158119,1779897052000,-434.23603839,0.00038546,10]
[423158120,1779897052000,-434.23603839,0.00038546,10]
[423158123,1779897052000,-200.0,0.000386,16]
[423158122,1779897052000,-9541.81,0.000386,2]
[423158107,1779897052000,-514.23,0.000385,2]
[423158111,1779897052000,-1587.0,0.00038542,11]
[423158150,1779897052000,-500.0,0.00038608,7]
[423158148,1779897052000,-500.0,0.00038608,7]
[423158185,1779897052000,-1698.0,0.00038698,2]
[423158183,1779897052000,-2317.0,0.00038643,11]
[423158187,1779897052000,-157.90300786,0.00038724,2]
[423158184,1779897052000,-2317.0,0.00038644,11]
[423158188,1779897052000,-150.0,0.00038724,2]
[423158186,1779897052000,-1589.0,0.000387,11]
[423158182,1779897052000,-163.0,0.00038642,11]
[423158191,1779897052000,-1589.0,0.00038797,11]
[423158194,1779897052000,-141358.0,0.000388,30]
[423158193,1779897052000,-300.0,0.00038799,10]
[423158196,1779897052000,-300.0,0.00038814,10]
[423158181,1779897052000,-1549.0,0.0003863,30]
[423158192,1779897052000,-300.0,0.00038799,10]
[423158198,1779897052000,-46247.84946388,0.00038815,6]
[423158197,1779897052000,-300.0,0.00038814,10]
[423158201,1779897052000,-1200.0,0.00038846,120]
[423158199,1779897052000,-548.0,0.00038824,30]
[423158200,1779897052000,-272.96,0.00038836,30]
[423158204,1779897052000,-1589.0,0.00038864,11]
[423158203,1779897052000,-1589.0,0.00038855,11]
[423158205,1779897052000,-151.0,0.000389,120]
[423158207,1779897052000,-1700.0,0.000389,14]
[423158206,1779897052000,-190.97,0.000389,30]
[423158152,1779897052000,-500.0,0.00038608,7]
[423158202,1779897052000,-500.0,0.00038846,120]
[423158180,1779897052000,-350.0,0.00038617,2]
[423158195,1779897052000,-2328.30927666,0.00038805,30]
[423158190,1779897052000,-700.0,0.00038786,60]
[423158156,1779897052000,-500.0,0.00038608,7]
[423158178,1779897052000,-617.07,0.00038608,7]
[423158157,1779897052000,-500.0,0.00038608,7]
[423158166,1779897052000,-500.0,0.00038608,7]
[423158158,1779897052000,-500.0,0.00038608,7]
[423158155,1779897052000,-500.0,0.00038608,7]
[423158164,1779897052000,-500.0,0.00038608,7]
[423158159,1779897052000,-500.0,0.00038608,7]
[423158163,1779897052000,-500.0,0.00038608,7]
[423158162,1779897052000,-500.0,0.00038608,7]
[423158161,1779897052000,-500.0,0.00038608,7]
[423158165,1779897052000,-500.0,0.00038608,7]
[423158167,1779897052000,-500.0,0.00038608,7]
[423158160,1779897052000,-500.0,0.00038608,7]
[423158168,1779897052000,-500.0,0.00038608,7]
[423158189,1779897052000,-1000.0,0.00038773,120]
[423158174,1779897052000,-500.0,0.00038608,7]
[423158171,1779897052000,-500.0,0.00038608,7]
[423158177,1779897052000,-590.39,0.00038608,7]
[423158173,1779897052000,-500.0,0.00038608,7]
[423158179,1779897052000,-500.0,0.00038608,7]
[423158172,1779897052000,-500.0,0.00038608,7]
[423158176,1779897052000,-500.0,0.00038608,7]
[423158169,1779897052000,-500.0,0.00038608,7]
[423158170,1779897052000,-500.0,0.00038608,7]
[423158175,1779897052000,-500.0,0.00038608,7]
[423158251,1779897053000,-234.0,0.00038989,60]
[423158246,1779897053000,-1536.11026823,0.00038925,30]
[423158241,1779897053000,-300.0,0.00038904,120]
[423158247,1779897053000,-2317.0,0.00038962,11]
[423158245,1779897053000,-1524.91555555,0.00038925,30]
[423158249,1779897053000,-2317.0,0.00038964,11]
[423158248,1779897053000,-2317.0,0.00038962,11]
[423158244,1779897053000,-1549.0,0.00038904,30]
[423158242,1779897053000,-300.0,0.00038904,120]
[423158243,1779897053000,-427.484109,0.00038904,120]
[423158253,1779897053000,-152.0,0.00039,120]
[423158250,1779897053000,-163.0,0.00038964,11]
[423158263,1779897053000,-1589.0,0.00039142,11]
[423158265,1779897053000,-17938.53937502,0.00039168,7]
[423158264,1779897053000,-2317.0,0.00039142,11]
[423158259,1779897053000,-160.44,0.0003909,116]
[423158252,1779897053000,-157.90300786,0.00038998,2]
[423158256,1779897053000,-407.99,0.00039058,30]
[423158258,1779897053000,-1589.0,0.00039063,11]
[423158260,1779897053000,-150.0,0.00039121,30]
[423158255,1779897053000,-2317.0,0.00039043,11]
[423158257,1779897053000,-500.0,0.0003906,60]
[423158262,1779897053000,-245.00898,0.00039121,30]
[423158261,1779897053000,-150.0,0.00039121,30]
[423158266,1779897053000,-1000.0,0.00039175,2]
[423158272,1779897053000,-1549.0,0.00039178,30]
[423158240,1779897053000,-300.0,0.00038904,120]
[423158254,1779897053000,-28127.54,0.00039027,14]
[423158238,1779897053000,-300.0,0.00038904,120]
[423158209,1779897053000,-300.0,0.00038903,10]
[423158236,1779897053000,-300.0,0.00038904,120]
[423158269,1779897053000,-1000.0,0.00039175,2]
[423158214,1779897053000,-300.0,0.00038904,120]
[423158215,1779897053000,-300.0,0.00038904,120]
[423158208,1779897053000,-9000.0,0.000389,30]
[423158212,1779897053000,-300.0,0.00038904,120]
[423158210,1779897053000,-163.32966606,0.00038904,60]
[423158211,1779897053000,-300.0,0.00038904,120]
[423158213,1779897053000,-300.0,0.00038904,120]
[423158217,1779897053000,-300.0,0.00038904,120]
[423158216,1779897053000,-300.0,0.00038904,120]
[423158220,1779897053000,-300.0,0.00038904,120]
[423158218,1779897053000,-300.0,0.00038904,120]
[423158227,1779897053000,-300.0,0.00038904,120]
[423158234,1779897053000,-300.0,0.00038904,120]
[423158222,1779897053000,-300.0,0.00038904,120]
[423158226,1779897053000,-300.0,0.00038904,120]
[423158223,1779897053000,-300.0,0.00038904,120]
[423158219,1779897053000,-300.0,0.00038904,120]
[423158225,1779897053000,-300.0,0.00038904,120]
[423158221,1779897053000,-300.0,0.00038904,120]
[423158229,1779897053000,-300.0,0.00038904,120]
[423158228,1779897053000,-300.0,0.00038904,120]
[423158230,1779897053000,-300.0,0.00038904,120]
[423158231,1779897053000,-300.0,0.00038904,120]
[423158239,1779897053000,-300.0,0.00038904,120]
[423158235,1779897053000,-300.0,0.00038904,120]
[423158233,1779897053000,-300.0,0.00038904,120]
[423158232,1779897053000,-300.0,0.00038904,120]
[423158224,1779897053000,-300.0,0.00038904,120]
[423158270,1779897053000,-1000.0,0.00039175,2]
[423158237,1779897053000,-300.0,0.00038904,120]
[423158267,1779897053000,-1000.0,0.00039175,2]
[423158304,1779897053000,-500.0,0.00039315,120]
[423158314,1779897053000,-500.0,0.00039315,120]
[423158303,1779897053000,-500.0,0.00039315,120]
[423158305,1779897053000,-500.0,0.00039315,120]
[423158306,1779897053000,-500.0,0.00039315,120]
[423158307,1779897053000,-500.0,0.00039315,120]
[423158308,1779897053000,-500.0,0.00039315,120]
[423158309,1779897053000,-414.9547504,0.00039315,120]
[423158312,1779897053000,-500.0,0.00039315,120]
[423158313,1779897053000,-500.0,0.00039315,120]
[423158311,1779897053000,-150.0,0.00039315,30]
[423158310,1779897053000,-377.04437348,0.00039315,120]
[423158318,1779897053000,-200.8725066,0.00039315,120]
[423158331,1779897053000,-500.0,0.00039315,120]
[423158317,1779897053000,-500.0,0.00039315,120]
[423158319,1779897053000,-167.9355991,0.00039315,120]
[423158325,1779897053000,-500.0,0.00039315,120]
[423158322,1779897053000,-500.0,0.00039315,120]
[423158327,1779897053000,-427.74621557,0.00039315,120]
[423158316,1779897053000,-500.0,0.00039315,120]
[423158321,1779897053000,-500.0,0.00039315,120]
[423158324,1779897053000,-500.0,0.00039315,120]
[423158320,1779897053000,-344.95621997,0.00039315,120]
[423158323,1779897053000,-606.77997374,0.00039315,120]
[423158329,1779897053000,-500.0,0.00039315,120]
[423158330,1779897053000,-500.0,0.00039315,120]
[423158328,1779897053000,-500.0,0.00039315,120]
[423158268,1779897053000,-1000.0,0.00039175,2]
[423158315,1779897053000,-500.0,0.00039315,120]
[423158299,1779897053000,-500.0,0.00039315,120]
[423158326,1779897053000,-500.0,0.00039315,120]
[423158297,1779897053000,-1170.06932274,0.00039314,30]
[423158295,1779897053000,-514.23,0.000393,2]
[423158271,1779897053000,-1720.16241665,0.00039175,2]
[423158275,1779897053000,-221.09502108,0.00039196,120]
[423158274,1779897053000,-214.88671183,0.00039196,120]
[423158277,1779897053000,-5800.0,0.000392,14]
[423158288,1779897053000,-532.92,0.00039272,30]
[423158281,1779897053000,-2000.0,0.0003921,111]
[423158287,1779897053000,-221.34,0.00039272,30]
[423158276,1779897053000,-214.88671185,0.00039196,120]
[423158278,1779897053000,-300.0,0.00039209,10]
[423158289,1779897053000,-321.59,0.00039272,30]
[423158279,1779897053000,-78908.1210174,0.0003921,2]
[423158280,1779897053000,-2000.0,0.0003921,111]
[423158283,1779897053000,-449.42469043,0.00039217,50]
[423158273,1779897053000,-1589.0,0.00039182,11]
[423158284,1779897053000,-185.355075,0.00039256,14]
[423158285,1779897053000,-3594.94,0.00039259,2]
[423158298,1779897053000,-500.0,0.00039315,120]
[423158302,1779897053000,-500.0,0.00039315,120]
[423158301,1779897053000,-500.0,0.00039315,120]
[423158292,1779897053000,-163.0,0.00039284,11]
[423158296,1779897053000,-151.0,0.00039312,14]
[423158293,1779897053000,-151.0,0.000393,120]
[423158286,1779897053000,-157.90300786,0.00039272,2]
[423158294,1779897053000,-9541.81,0.000393,2]
[423158282,1779897053000,-355.46744331,0.00039215,2]
[423158300,1779897053000,-500.0,0.00039315,120]
[423158290,1779897053000,-569.98,0.00039272,30]
[423158291,1779897053000,-2317.0,0.00039282,11]
[423158366,1779897054000,-3703.75943401,0.00039315,120]
[423158363,1779897054000,-3703.54,0.00039315,120]
[423158364,1779897054000,-3703.54,0.00039315,120]
[423158353,1779897054000,-3703.54,0.00039315,120]
[423158373,1779897054000,-500.0,0.00039315,120]
[423158371,1779897054000,-242.223504,0.00039315,120]
[423158372,1779897054000,-500.0,0.00039315,120]
[423158374,1779897054000,-548.51604584,0.00039315,120]
[423158370,1779897054000,-411.92297036,0.00039315,120]
[423158368,1779897054000,-522.38411847,0.00039315,120]
[423158357,1779897054000,-3703.54,0.00039315,120]
[423158365,1779897054000,-3703.54,0.00039315,120]
[423158384,1779897054000,-3465.18,0.00039315,120]
[423158367,1779897054000,-500.0,0.00039315,120]
[423158376,1779897054000,-3465.18,0.00039315,120]
[423158375,1779897054000,-3465.18,0.00039315,120]
[423158387,1779897054000,-3465.18,0.00039315,120]
[423158385,1779897054000,-3465.18,0.00039315,120]
[423158377,1779897054000,-3465.18,0.00039315,120]
[423158386,1779897054000,-3465.18,0.00039315,120]
[423158378,1779897054000,-3465.18,0.00039315,120]
[423158379,1779897054000,-3465.18,0.00039315,120]
[423158354,1779897054000,-3703.54,0.00039315,120]
[423158383,1779897054000,-3465.18,0.00039315,120]
[423158369,1779897054000,-576.4167115,0.00039315,120]
[423158352,1779897054000,-3703.54,0.00039315,120]
[423158343,1779897054000,-3703.54,0.00039315,120]
[423158360,1779897054000,-3703.54,0.00039315,120]
[423158382,1779897054000,-3465.18,0.00039315,120]
[423158339,1779897054000,-500.0,0.00039315,120]
[423158340,1779897054000,-500.0,0.00039315,120]
[423158332,1779897054000,-500.0,0.00039315,120]
[423158335,1779897054000,-499.49499999,0.00039315,120]
[423158333,1779897054000,-500.0,0.00039315,120]
[423158334,1779897054000,-500.0,0.00039315,120]
[423158338,1779897054000,-165.24769759,0.00039315,120]
[423158336,1779897054000,-504.51035548,0.00039315,120]
[423158337,1779897054000,-151.0,0.00039315,120]
[423158342,1779897054000,-155.42494154,0.00039315,120]
[423158362,1779897054000,-3703.54,0.00039315,120]
[423158351,1779897054000,-3703.54,0.00039315,120]
[423158344,1779897054000,-3703.54,0.00039315,120]
[423158349,1779897054000,-3703.54,0.00039315,120]
[423158348,1779897054000,-3703.54,0.00039315,120]
[423158345,1779897054000,-3703.54,0.00039315,120]
[423158346,1779897054000,-3703.54,0.00039315,120]
[423158347,1779897054000,-3703.54,0.00039315,120]
[423158355,1779897054000,-3703.54,0.00039315,120]
[423158359,1779897054000,-3703.54,0.00039315,120]
[423158361,1779897054000,-3703.54,0.00039315,120]